Workbook

Sheet Лист1
B3: Исполнение бюджета Яльчикского района по состоянию на 01.11.2012 (Бюджетные средства)
AA5: (руб.)
D6: Всего доходов | G6: в том числе | Z6: всего расходов | AC6: Дефицит (-),Профицит (+) | AE6: Остатки на счетах бюджетов
G7: налоговые и неналоговые доходы | L7: безвозмездные перечисления | O7: дотации на выравнивание уровня бюджетной обеспеченности | R7: дотации на сбалансированность бюджетов | U7: Прочие безвозмездные поступления (добр.взносы юр.и физ.лиц) | X7: Возврат остаков субсидий,субвенций и иных межбюджетных трансфертов прошлых лет
G9: назначено на год | H9: исполнено | J9: %
D10: назначено на год | E10: исполнено | F10: % | H10: на 01.11.2011 | I10: на 01.11.2012 | J10: 01.11.2012/01.11.2011 | K10: 01.11.2012 к плановым назчениям | L10: назначено на год | M10: исполнено | N10: % | O10: назначено на год | P10: исполнено | Q10: % | R10: назначено на год | S10: исполнено | T10: % | U10: назначено на год | V10: исполнено | W10: % | X10: назначено на год | Y10: исполнено | Z10: назначено на год | AA10: исполнено | AB10: % | AC10: назначено на год | AD10: исполнено | AE10: На 01.01.2012 г. | AF10: 01.11.2012 г.
A11: Б-Таябинское | D11: =G11+L11+U11 -> 2752537 | E11: =I11+M11+V11 -> 2283274.91 | F11: =E11/D11*100 -> 82.95165188 | G11: 482250 | H11: 401583.95 | I11: 389071.91 | J11: =I11/H11*100 -> 96.88432767 | K11: =I11/G11*100 -> 80.6784676 | L11: 2230287 | M11: 1874203 | N11: =M11/L11*100 -> 84.03416242 | O11: 1368900 | P11: 1184366 | Q11: =P11/O11*100 -> 86.51954124 | R11: 121620 | S11: 42000 | T11: =S11/R11*100 -> 34.53379378 | U11: 40000 | V11: 20000 | W11: =V11/U11*100 -> 50 | Z11: 2776523 | AA11: 2163916.96 | AB11: =AA11/Z11*100 -> 77.93621591 | AC11: =D11-Z11 -> -23986 | AD11: =E11-AA11 -> 119357.95 | AE11: 23986.41 | AF11: 143344.36
A12: Б-Яльчикское | D12: =G12+L12+U12 -> 4871990 | E12: 3888326.53 | F12: 79.80982165 | G12: 608900 | H12: 494259.89 | I12: 534562.53 | J12: =I12/H12*100 -> 108.1541393 | K12: =I12/G12*100 -> 87.79151421 | L12: 4198090 | M12: 3304764 | N12: 78.7206563 | O12: 2144700 | P12: 1780380 | Q12: 83.01300881 | R12: 51290 | T12: 0 | U12: 65000 | V12: 49000 | W12: =V12/U12*100 -> 75.38461538 | Z12: 4902990 | AA12: 3392637.82 | AB12: =AA12/Z12*100 -> 69.19528329 | AC12: -31000 | AD12: 495688.71 | AE12: 31075.69 | AF12: 526764.4
A13: Кильдюшевское | D13: 5280847 | E13: 4217129.39 | F13: 79.85706441 | G13: 1063300 | H13: 963795.81 | I13: 957281.39 | J13: 99.32408712 | K13: 90.02928524 | L13: 4097547 | M13: 3204848 | N13: 78.21381915 | O13: 2167700 | P13: 1799474 | Q13: 83.01305531 | R13: 242420 | S13: 73030 | T13: 30.12540219 | U13: 120000 | V13: 55000 | W13: 45.83333333 | Z13: 5389179 | AA13: 3969863 | AB13: 73.66359514 | AC13: -108332 | AD13: 247266.39 | AE13: 108332.76 | AF13: 355599.15
A14: Лащ-Таябинское | D14: 6880667 | E14: 4858039.87 | F14: 70.60419971 | G14: 805000 | H14: 688045.45 | I14: 804205.87 | J14: 116.8826667 | K14: 99.90135031 | L14: 6030667 | M14: 4028834 | N14: 66.80577787 | O14: 3065100 | P14: 2496432 | Q14: 81.4470001 | R14: 237566 | S14: 171050 | T14: 72.00104392 | U14: 45000 | V14: 25000 | W14: 55.55555556 | Z14: 7042689.5 | AA14: 4887055.94 | AB14: 69.39189836 | AC14: -162022.5 | AD14: -29016.07 | AE14: 162022.5 | AF14: 133006.43
A15: Малотаябинское | D15: 3122537 | E15: 2589228.71 | F15: 82.92067348 | G15: 450256 | H15: 401525.32 | I15: 520486.71 | J15: 129.6273695 | K15: 115.5979509 | L15: 2620281 | M15: 2033742 | N15: =M15/L15*100 -> 77.61541606 | O15: 1751900 | P15: 1454305 | Q15: =P15/O15*100 -> 83.01301444 | R15: 9924 | T15: 0 | U15: 52000 | V15: 35000 | W15: 67.30769231 | Z15: 3228290 | AA15: 2013510.05 | AB15: 62.37079228 | AC15: -105753 | AD15: 575718.66 | AE15: 106327.39 | AF15: 682046.05
A16: Новошимкусское | D16: 7695107 | E16: 6472513.47 | F16: 84.11206589 | G16: 1046500 | H16: 858708.7 | I16: 848403.47 | J16: 98.7999155 | K16: 81.0705657 | L16: 6581107 | M16: 5451610 | N16: 82.8372795 | O16: 2161400 | P16: 1794245 | Q16: 83.01309337 | R16: 325670 | S16: 0 | T16: 0 | U16: 67500 | V16: 172500 | W16: 255.5555556 | Z16: 7805920 | AA16: 6120726.54 | AB16: 78.41134088 | AC16: -110813 | AD16: 351786.93 | AE16: 110813.76 | AF16: 462600.69
A17: Сабанчинское | D17: 3134311 | E17: 2297005.02 | F17: 73.28580412 | G17: 584950 | H17: 468222.86 | I17: 602201.02 | J17: 128.614186 | K17: 102.9491444 | L17: 2504361 | M17: 1661054 | N17: 66.32646012 | O17: 1343200 | P17: 1115030 | Q17: 83.01295414 | R17: 167800 | S17: 55000 | T17: 32.77711561 | U17: 45000 | V17: 33750 | W17: 75 | Z17: 3185537.99 | AA17: 2005336.19 | AB17: 62.95125647 | AC17: -51226.99 | AD17: 291668.83 | AE17: 51226.99 | AF17: 342895.82
A18: Яльчикское | D18: 16915571 | E18: 11858733.68 | F18: 70.10542937 | G18: 5812191 | H18: 4596738.11 | I18: 6169027.68 | J18: 134.2044627 | K18: 106.1394521 | L18: 11073380 | M18: 5667206 | N18: 51.17864645 | O18: 2170100 | P18: 1801465 | Q18: 83.01299479 | T18: 0 | U18: 30000 | V18: 22500 | W18: 75 | Z18: 17162893 | AA18: 8284605.56 | AB18: 48.27044928 | AC18: -247322 | AD18: 3574128.12 | AE18: 263676.53 | AF18: 3837804.65
A19: Янтиковское | D19: 5817260 | E19: 4969676.86 | F19: 85.42985632 | G19: 1503000 | H19: 1134206.71 | I19: 1415121.86 | J19: 124.7675444 | K19: 94.15315103 | L19: 4294260 | M19: 3536645 | N19: 82.35749582 | O19: 3371200 | P19: 2798535 | Q19: 83.01302207 | T19: 0 | U19: 20000 | V19: 17910 | W19: 89.55 | Z19: 5903739.19 | AA19: 4341045.73 | AB19: 73.53044554 | AC19: -86479.19 | AD19: 628631.13 | AE19: 86479.19 | AF19: 715110.32
A20: Всего по пос-м | D20: =G20+L20+U20 -> 56470827 | E20: =E11+E12+E13+E14+E15+E16+E17+E18+E19 -> 43433928.44 | F20: =E20/D20*100 -> 76.91392308 | G20: =SUM(G11:G19) -> 12356347 | H20: =SUM(H11:H19) -> 10007086.8 | I20: =I11+I12+I13+I14+I15+I16+I17+I18+I19 -> 12240362.44 | J20: 122.3169408 | K20: 99.06133617 | L20: =SUM(L11:L19) -> 43629980 | M20: =SUM(M11:M19) -> 30762906 | N20: =M20/L20*100 -> 70.50864108 | O20: =SUM(O11:O19) -> 19544200 | P20: =SUM(P11:P19) -> 16224232 | Q20: =P20/O20*100 -> 83.01302688 | R20: =R11+R12+R13+R14+R15+R16+R17+R18+R19 -> 1156290 | S20: =SUM(S11:S19) -> 341080 | T20: 29.49779035 | U20: =SUM(U11:U19) -> 484500 | V20: =SUM(V11:V19) -> 430660 | W20: =V20/U20*100 -> 88.8875129 | Z20: =Z11+Z12+Z13+Z14+Z15+Z16+Z17+Z18+Z19 -> 57397761.68 | AA20: =SUM(AA11:AA19) -> 37178697.79 | AB20: 64.77377637 | AC20: -926934.68 | AD20: =E20-AA20 -> 6255230.65 | AE20: =SUM(AE11:AE19) -> 943941.22 | AF20: =SUM(AF11:AF19) -> 7199171.87
A21: Бюджет района: | D21: =G21+L21+X21 -> 360868380.1 | E21: =I21+M21+V21+X21 -> 311411256.8 | F21: =E21/D21*100 -> 86.29496902 | G21: 51113409.59 | H21: 35724106.6 | I21: 38355843.29 | J21: 107.366837 | K21: 75.04066662 | L21: 310319150 | M21: 273618593 | N21: =M21/L21*100 -> 88.17328644 | O21: 22336500 | P21: 18098400 | Q21: =P21/O21*100 -> 81.02612316 | S21: 0 | T21: 0 | V21: 1000 | X21: -564179.53 | Y21: -564179.53 | Z21: 363292741.6 | AA21: 307407259.8 | AB21: 84.61695613 | AC21: -2424361.53 | AD21: 4003996.97 | AE21: 2659204.98 | AF21: 6663201.95
A22: Консолидированный бюджет | D22: =G22+L22+U22+X22 -> 373386627.1 | E22: =I22+M22+V22+Y22 -> 323759679.2 | F22: =E22/D22*100 -> 86.70896485 | G22: =G20+G21 -> 63469756.59 | H22: =H20+H21 -> 45731193.4 | I22: =SUM(I20:I21) -> 50596205.73 | J22: 110.6382798 | K22: 79.7170313 | L22: =L21-322600 -> 309996550 | M22: =M21-322600 -> 273295993 | N22: =M22/L22*100 -> 88.16097889 | O22: =O21 -> 22336500 | P22: =P21 -> 18098400 | Q22: =P22/O22*100 -> 81.02612316 | R22: =R21 -> 0 | S22: =S21 -> 0 | T22: 0 | U22: =U20 -> 484500 | V22: =V20+V21 -> 431660 | W22: =V22/U22*100 -> 89.09391125 | X22: =X21 -> -564179.53 | Y22: =Y21 -> -564179.53 | Z22: =Z20+Z21-L20-322600 -> 376737923.3 | AA22: =AA20+AA21-M20-322600 -> 313500451.6 | AB22: 83.21446614 | AC22: -3351296.21 | AD22: =E22-AA22 -> 10259227.62 | AE22: =SUM(AE20:AE21) -> 3603146.2 | AF22: =SUM(AF20:AF21) -> 13862373.82
D24: Муниципальный район
A25: Налог на доходы физ.лиц | G25: 36383400 | H25: 22565239.46 | I25: 26920276.51 | J25: =I25/H25*100 -> 119.29976 | K25: =I25/G25*100 -> 73.99054654
A26: Единый налог на вмененный доход | G26: 8356500 | H26: 6153817.95 | I26: 6714281.37 | J26: =I26/H26*100 -> 109.1075723 | K26: =I26/G26*100 -> 80.34800898
A27: Единый с/х налог | G27: 700000 | H27: 497478.28 | I27: 595539.01 | J27: 119.7115601 | K27: 85.07700143
A28: Налог на добычу полезных ископаемых | G28: 221300 | H28: 176918.11 | I28: 249364 | J28: =I28/H28*100 -> 140.9488266 | K28: 112.6814279
A29: Госпошлина | G29: 908150 | H29: 1909208.41 | I29: 568542.47 | J29: 29.77896321 | K29: 62.60446732
A30: Задолженность и перерасчеты по отменным налогам | G30: 0 | H30: 4955.36 | I30: 1775.25 | J30: =I30/H30*100 -> 35.82484421 | K30: 0
A31: Доходы от арендной платы за земельные участки | G31: 1204750 | H31: 595996.25 | I31: 764781.65 | J31: 128.3198762 | K31: 63.48052708
A32: Доходы от сдачи в аренду имущества | G32: 172200 | H32: 57455.89 | I32: 138519.26 | J32: 241.0880068 | K32: 80.44091754
A33: Доходы от перечисления части прибыли, остающейся после уплаты налогов и иных обязательных платежей МУП | G33: 0 | H33: 0 | I33: 46461 | J33: 0 | K33: 0
A34: Негативное возд.на окружающую среду | G34: 365400 | H34: 447586.38 | I34: 519817.19 | J34: 116.1378481 | K34: 142.2597674
A35: Доходы от оказания платных услуг | G35: 50000 | H35: 0 | I35: 600 | J35: 0 | K35: =I35/G35*100 -> 1.2
A36: Прочие доходы от компенсации затрат бюджетов муниципальных районов | G36: 72259.59 | H36: 36723.89 | I36: 45705.57 | J36: =I36/H36*100 -> 124.4573219 | K36: =I36/G36*100 -> 63.25190885
A37: Доходы от продажи муниц.имущества | G37: 920000 | H37: 914790 | I37: 94240 | J37: 0 | K37: =I37/H37*100 -> 10.3018179
A38: Доходы от продажи земли | G38: 599450 | H38: 566181.9 | I38: 665204.15 | J38: 117.4894764 | K38: =I38/G38*100 -> 110.96908
A39: Штрафы | G39: 1160000 | H39: 1761628.61 | I39: 1030735.86 | J39: 58.51039511 | K39: 88.85653966
A40: Невыясненные поступления | H40: 36126.11
A41: Прочие неналоговые доходы
A42: Итого налог. и неналог. доходы | G42: =SUM(G25:G41) -> 51113409.59 | H42: =SUM(H25:H41) -> 35724106.6 | I42: =SUM(I25:I41) -> 38355843.29 | J42: 107.366837 | K42: 75.04066662

Sheet Лист2
A3: Исполнение налоговых и неналоговых доходов бюджетов сельских поселений Яльчикского района по состоянию на 01.11.2012 года
A6: Сельские поселения | D6: Всего доходов | G6: в том числе
G7: НДФЛ | L7: Единый с/х налог | Q7: Налог на имущество | V7: Земельный налог | AA7: Государственная пошлина за совершение нотариальных действий должностными лицами органов местного самоуправления | AF7: Земельный налог ( по обязательствам, возникшим до 1 января 2006 года), мобилизуемый на территориях поселений | AK7: Сельские поселения | AN7: Арендная плата за аренду земли | AS7: Арендная плата за аренду имущестава | AX7: Прочие доходы от оказания платных услуг получателями средств бюджетов поселений и компенсации затрат государства бюджетов поселений | BC7: Доходы от продажи земельных участков, государственная собственность на которые не разграничена и которые расположены в границах поселений | BH7: Доходы от реализации иного имущества, находящихся в собственности поселений | BM7: Прочие поступления от денежных взысканий (штрафов) за наруш.зак. РФ о размещ.зак.на пост.тов. выпол.работ,оказ. усл. | BR7: Прочие неналоговые доходы | BW7: Невыясненные поступления
D8: Уточненный план год | E8: исполнено | G8: Уточненный план год | H8: исполнено | J8: % | L8: Уточненный план год | M8: исполнено | O8: % | Q8: Уточненный план год | R8: исполнено | T8: % | V8: Уточненный план год | W8: исполнено | Y8: % | AA8: Уточненный план год | AB8: исполнено | AD8: % | AF8: Уточненный план год | AG8: исполнено | AI8: % | AN8: Уточненный план год | AO8: исполнено | AQ8: % | AS8: Уточненный план год | AT8: исполнено | AV8: % | AX8: Уточненный план год | AY8: исполнено | BA8: % | BC8: Уточненный план год | BD8: исполнено | BF8: % | BH8: Уточненный план год | BI8: исполнено | BK8: % | BM8: Уточненный план год | BN8: исполнено | BP8: % | BR8: Уточненный план год | BS8: исполнено | BU8: % | BW8: Уточненный план год | BX8: исполнено | BZ8: %
F9: % исп-ия | H9: на 01.11.2011 | I9: на 01.11.2012 | J9: 01.11.2012/01.11.2011 | K9: 01.11.2012 к плановым назчениям | M9: на 01.11.2011 | N9: на 01.11.2012 | O9: 01.11.2012/01.11.2011 | P9: 01.11.2012 к плановым назчениям | R9: на 01.11.2011 | S9: на 01.11.2012 | T9: 01.11.2012/01.11.2011 | U9: 01.11.2012 к плановым назчениям | W9: на 01.11.2011 | X9: на 01.11.2012 | Y9: 01.11.2012/01.11.2011 | Z9: 01.11.2012 к плановым назчениям | AB9: на 01.11.2011 | AC9: на 01.11.2012 | AD9: 01.11.2012/01.11.2011 | AE9: 01.11.2012 к плановым назчениям | AG9: на 01.11.2011 | AH9: на 01.11.2012 | AI9: 01.11.2012/01.11.2011 | AJ9: 01.11.2012 к плановым назчениям | AO9: на 01.11.2011 | AP9: на 01.11.2012 | AQ9: 01.11.2012/01.11.2011 | AR9: 01.11.2012 к плановым назчениям | AT9: на 01.11.2011 | AU9: на 01.11.2012 | AV9: 01.11.2012/01.11.2011 | AW9: 01.11.2012 к плановым назчениям | AY9: на 01.11.2011 | AZ9: на 01.11.2012 | BA9: 01.11.2012/01.11.2011 | BB9: 01.11.2012 к плановым назчениям | BD9: на 01.11.2011 | BE9: на 01.11.2012 | BF9: 01.11.2012/01.11.2011 | BG9: 01.11.2012 к плановым назчениям | BI9: на 01.11.2011 | BJ9: на 01.11.2012 | BK9: 01.11.2012/01.11.2011 | BL9: 01.11.2012 к плановым назчениям | BN9: на 01.11.2011 | BO9: на 01.11.2012 | BP9: 01.11.2012/01.11.2011 | BQ9: 01.11.2012 к плановым назчениям | BS9: на 01.11.2011 | BT9: на 01.11.2012 | BU9: 01.11.2012/01.11.2011 | BV9: 01.11.2012 к плановым назчениям | BX9: на 01.11.2011 | BY9: на 01.11.2012 | BZ9: 01.11.2012/01.11.2011 | CA9: 01.11.2012 к плановым назчениям
A10: Большетаябинское | D10: =G10+L10+Q10+V10+AA10+AF10+AN10+AS10+AX10+BC10+BW10 -> 482250 | E10: =I10+N10+S10+X10+AC10+AP10+AU10+BE10 -> 389071.91 | F10: =E10/D10*100 -> 80.6784676 | G10: 85270 | H10: 52315.54 | I10: 80309.31 | J10: =I10/H10*100 -> 153.5094735 | K10: =I10/G10*100 -> 94.18237364 | L10: 21100 | M10: 15307.68 | N10: 6510.53 | O10: =N10/M10*100 -> 42.5311347 | P10: =N10/L10*100 -> 30.85559242 | Q10: 59000 | R10: 807.43 | S10: 34818.79 | T10: =S10/R10*100 -> 4312.29828 | U10: =S10/Q10*100 -> 59.01489831 | V10: 214400 | W10: 231139.79 | X10: 205079.75 | Y10: =X10/W10*100 -> 88.72542023 | Z10: =X10/V10*100 -> 95.65286847 | AA10: 0 | AB10: 12350 | AC10: 12110 | AD10: =AC10/AB10*100 -> 98.05668016 | AE10: 0 | AF10: 0 | AK10: Большетаябинское | AN10: 73050 | AO10: 57392.5 | AP10: 31422.25 | AQ10: =AP10/AO10*100 -> 54.74974953 | AR10: =AP10/AN10*100 -> 43.01471595 | AS10: 17700 | AT10: 19961.95 | AU10: 11541.28 | AV10: =AU10/AT10*100 -> 57.81639569 | AW10: =AU10/AS10*100 -> 65.20497175 | AY10: 1864.29 | BA10: 0 | BB10: 0 | BC10: 11730 | BD10: 10444.77 | BE10: 7280 | BF10: =BE10/BD10*100 -> 69.6999551 | BG10: =BE10/BC10*100 -> 62.0630861 | BY10: 0 | BZ10: 0 | CA10: 0
A11: Большеяльчикское | D11: =G11+L11+Q11+V11+AA11+AF11+AN11+AS11+AX11+BC11+BW11 -> 608900 | E11: =I11+N11+S11+X11+AC11+AP11+AZ11+BE11+BJ11 -> 534562.53 | F11: =E11/D11*100 -> 87.79151421 | G11: 111300 | H11: 99166.62 | I11: 116308.34 | J11: =I11/H11*100 -> 117.2857762 | K11: =I11/G11*100 -> 104.4998562 | L11: 2800 | M11: 1998.36 | N11: 10236.71 | O11: =N11/M11*100 -> 512.2555496 | P11: =N11/L11*100 -> 365.5967857 | Q11: 86800 | R11: 7535.53 | S11: 74830.14 | T11: =S11/R11*100 -> 993.0308817 | U11: =S11/Q11*100 -> 86.20983871 | V11: 319800 | W11: 282061.28 | X11: 249585.8 | Y11: =X11/W11*100 -> 88.48637431 | Z11: =X11/V11*100 -> 78.04434021 | AA11: 0 | AB11: 11700 | AC11: 10900 | AD11: =AC11/AB11*100 -> 93.16239316 | AE11: 0 | AF11: 0 | AG11: 1324.08 | AK11: Большеяльчикское | AN11: 88200 | AO11: 46480.28 | AP11: 42518.13 | AQ11: =AP11/AO11*100 -> 91.47563225 | AR11: =AP11/AN11*100 -> 48.2064966 | AS11: 0 | AT11: 1736.86 | AU11: 0 | AV11: =AU11/AT11*100 -> 0 | AW11: 0 | AY11: 18230.88 | AZ11: 5965.91 | BA11: 0 | BB11: 0 | BC11: 0 | BD11: 8774 | BE11: 20497.5 | BF11: 0 | BG11: 0 | BI11: 15252 | BJ11: 3720 | BY11: 0 | BZ11: 0 | CA11: 0
A12: Кильдюшевское | D12: 1063300 | E12: =I12+N12+S12+X12+AC12+AP12+AU12+AZ12+BE12+BY12 -> 957281.39 | F12: 90.02928524 | G12: 293900 | H12: 188543.02 | I12: 271986.63 | J12: 144.2570666 | K12: 92.54393671 | L12: 60300 | M12: 42799.45 | N12: 106700.33 | O12: 249.3030401 | P12: 176.9491376 | Q12: 103900 | R12: 1430.67 | S12: 65132.92 | T12: 4552.616606 | U12: =S12/Q12*100 -> 62.6880847 | V12: 404985 | W12: 512551.51 | X12: 309501.9 | Y12: 60.38454555 | Z12: 76.42305271 | AA12: 0 | AB12: 23500 | AC12: 18600 | AD12: 79.14893617 | AE12: 0 | AF12: 0 | AK12: Кильдюшевское | AN12: 178500 | AO12: 107272.48 | AP12: 119491.55 | AQ12: 111.3906847 | AR12: 66.94204482 | AS12: 10600 | AT12: 9569.51 | AU12: 10583.3 | AV12: 110.5939594 | AW12: =AU12/AS12*100 -> 99.84245283 | AY12: 17965.75 | AZ12: 26422.26 | BA12: =AZ12/AY12*100 -> 147.0701752 | BB12: 0 | BC12: 11115 | BD12: 479.61 | BE12: 28862.5 | BF12: =BE12/BD12*100 -> 6017.910386 | BG12: =BE12/BC12*100 -> 259.6716149 | BX12: 59683.81 | BY12: 0 | BZ12: 0 | CA12: 0
A13: Лащ-Таябинское | D13: 805000 | E13: =I13+N13+S13+X13+AC13+AH13+AP13+AU13+BE13+BO13+BY13 -> 804205.87 | F13: 99.90135031 | G13: 303935 | H13: 202829 | I13: 271070 | J13: 133.6445972 | K13: 89.18683271 | L13: 16100 | M13: 11400.52 | N13: 9351.8 | O13: 82.02959163 | P13: 58.08571429 | Q13: 95600 | R13: 6990.37 | S13: 72870.14 | T13: 1042.436094 | U13: 76.22399582 | V13: 286600 | W13: 308626.06 | X13: 361931.52 | Y13: 117.2718597 | Z13: 126.2845499 | AA13: 0 | AB13: 29690 | AC13: 18400 | AD13: 61.97372853 | AE13: 0 | AF13: 0 | AG13: 284.14 | AH13: 1.77 | AI13: =AH13/AG13*100 -> 0.6229323573 | AJ13: 0 | AK13: Лащ-Таябинское | AN13: 99900 | AO13: 61565.5 | AP13: 55639.71 | AQ13: 90.37482031 | AR13: 55.69540541 | AS13: 200 | AT13: 3635.63 | AU13: 161.91 | AV13: 4.453423478 | AW13: 80.955 | AY13: 24671.88 | BA13: 0 | BB13: 0 | BC13: 2665 | BD13: 38352.35 | BE13: 11779.02 | BF13: 30.71264212 | BG13: 441.9894934 | BO13: 3000 | BY13: 0 | BZ13: 0 | CA13: 0
A14: Малотаябинское | D14: 450256 | E14: =I14+N14+S14+X14+AC14+AP14+AU14+AZ14+BE14+BY14 -> 520486.71 | F14: 115.5979509 | G14: 69838 | H14: 47686.91 | I14: 62601.99 | J14: 131.2770947 | K14: 89.63886423 | L14: 29700 | M14: 21102.28 | N14: 27607.04 | O14: 130.8249156 | P14: 92.95299663 | Q14: 70900 | R14: 1853.49 | S14: 49795.41 | T14: 2686.575595 | U14: =S14/Q14*100 -> 70.23330042 | V14: 162306 | W14: 130749.91 | X14: 235560.68 | Y14: 180.1612559 | Z14: 145.1336858 | AA14: 0 | AB14: 24150 | AC14: 4550 | AD14: 18.84057971 | AE14: 0 | AF14: 0 | AK14: Малотаябинское | AN14: 112450 | AO14: 105536.63 | AP14: 112832.51 | AQ14: 106.9131258 | AR14: 100.3401601 | AS14: 600 | AT14: 2197.03 | AU14: 460.17 | AV14: 20.94509406 | AW14: 76.695 | AY14: 42690.81 | AZ14: 22418.31 | BA14: =AZ14/AY14*100 -> 52.51319898 | BB14: 0 | BC14: 4462 | BD14: 565.19 | BE14: 4660.6 | BF14: 824.6076541 | BG14: 104.4509189 | BX14: 24983.07 | BY14: 0 | BZ14: 0 | CA14: 0
A15: Новошимкусское | D15: 1046500 | E15: =I15+N15+S15+X15+AC15+AP15+AU15+BE15 -> 848403.47 | F15: =E15/D15*100 -> 81.0705657 | G15: 255457 | H15: 198411.34 | I15: 232821.49 | J15: 117.3428343 | K15: 91.13920934 | L15: 202600 | M15: 143893.35 | N15: 78404.45 | O15: 54.48788982 | P15: 38.69913623 | Q15: 120900 | R15: 1815.99 | S15: 76320.77 | T15: 4202.708715 | U15: 63.12718776 | V15: 362600 | W15: 390359.04 | X15: 387054.4 | Y15: 99.15343577 | Z15: 106.7441809 | AA15: 0 | AB15: 16840 | AC15: 16900 | AD15: 100.3562945 | AE15: 0 | AF15: 0 | AG15: 122.9 | AH15: 0 | AI15: 0 | AJ15: 0 | AK15: Новошимкусское | AN15: 87500 | AO15: 35766.08 | AP15: 43577.85 | AQ15: 121.8412809 | AR15: 49.80325714 | AS15: 10500 | AT15: 24134.87 | AU15: 5556.51 | AV15: 23.02274676 | AW15: 52.91914286 | AY15: 19198.03 | BB15: 0 | BC15: 6943 | BD15: 432.68 | BE15: 7768 | BF15: 1795.322178 | BG15: 111.8824716 | BX15: 25441.72 | BY15: 0 | BZ15: 0 | CA15: 0
A16: Сабанчинское | D16: 584950 | E16: =I16+N16+S16+X16+AC16+AP16+AU16+BE16+BO16+BY16 -> 602201.02 | F16: 102.9491444 | G16: 132015 | H16: 101085.62 | I16: 97508.65 | J16: 96.46144526 | K16: 73.86179601 | L16: 59200 | M16: 42052.67 | N16: 71093.61 | O16: 169.0584926 | P16: 120.0905574 | Q16: 89600 | R16: 2017.43 | S16: 59023.5 | T16: 2925.677719 | U16: 65.87444196 | V16: 202100 | W16: 217386.7 | X16: 280106.31 | Y16: =X16/W16*100 -> 128.8516317 | Z16: 138.5978773 | AA16: 0 | AB16: 8000 | AC16: 8650 | AD16: 108.125 | AE16: 0 | AF16: 0 | AK16: Сабанчинское | AN16: 91150 | AO16: 59955.16 | AP16: 62033.51 | AQ16: 103.4665073 | AR16: 68.05651125 | AS16: 8700 | AT16: 9070.16 | AU16: 6599.97 | AV16: 72.76575055 | AW16: 75.86172414 | AY16: 7829.39 | BB16: 0 | BC16: 2185 | BD16: 20825.73 | BE16: 2185.47 | BF16: 10.49408592 | BG16: 100.0215103 | BO16: 15000 | BY16: 0 | BZ16: 0 | CA16: 0
A17: Яльчикское | D17: =G17+L17+Q17+V17+AA17+AF17+AN17+AS17+AX17+BC17+BW17+BH17 -> 5812191 | E17: =I17+N17+S17+X17+AP17+AU17+BE17+BJ17+BO17+BT17+BY17 -> 6169027.68 | F17: 106.1394521 | G17: 2728517 | H17: 2347938.46 | I17: 2555410.82 | J17: 108.8363628 | K17: 93.6556679 | L17: 98000 | M17: 69563.76 | N17: 16294.83 | O17: 23.42430886 | P17: 16.62737755 | Q17: 256000 | R17: 8071.41 | S17: 163617.25 | T17: 2027.121036 | U17: 63.91298828 | V17: 1104800 | W17: 1251522.26 | X17: 1624218.71 | Y17: 129.7794503 | Z17: 147.0147276 | AA17: 0 | AD17: 0 | AE17: 0 | AF17: 0 | AK17: Яльчикское | AN17: 316900 | AO17: 58960.71 | AP17: 202301.89 | AQ17: 343.1130494 | AR17: 63.83776901 | AS17: 62924 | AT17: 221008.09 | AU17: 342346.48 | AV17: 154.9022391 | AW17: =AU17/AS17*100 -> 544.0634416 | AY17: 38751.67 | BA17: 0 | BB17: 0 | BC17: 550050 | BD17: 492178.63 | BE17: 555437.7 | BF17: 112.8528681 | BG17: 100.9794928 | BH17: 695000 | BI17: 75000 | BJ17: 695000 | BK17: =BJ17/BI17*100 -> 926.6666667 | BL17: 0,0, | BN17: 20000 | BO17: 500 | BP17: =BO17/BN17*100 -> 2.5 | BQ17: 0 | BT17: 13900 | BX17: 13743.12 | BY17: 0 | BZ17: 0 | CA17: 0
A18: Янтиковское | D18: 1503000 | E18: =I18+N18+S18+X18+AC18+AP18+BE18 -> 1415121.86 | F18: 94.15315103 | G18: 532100 | H18: 341370.08 | I18: 436124.72 | J18: 127.7571602 | K18: 81.96292426 | L18: 210200 | M18: 149360.19 | N18: 269339.9 | O18: 180.3291091 | P18: 128.1350618 | Q18: 164900 | R18: 13176.13 | S18: 106245.84 | T18: 806.3508784 | U18: 64.43046695 | V18: 428400 | W18: 506117 | X18: 459903.31 | Y18: 90.86897101 | Z18: 107.3537138 | AA18: 0 | AB18: 35590 | AC18: 19670 | AD18: 55.2683338 | AE18: 0 | AF18: 0 | AK18: Янтиковское | AN18: 157100 | AO18: 63067.42 | AP18: 94964.7 | AQ18: 150.5764783 | AR18: 60.44856779 | AS18: 0 | AT18: 3473.72 | AV18: 0 | AW18: 0 | AY18: 19149.17 | AZ18: 0 | BA18: =AZ18/AY18*100 -> 0 | BB18: 0 | BC18: 10300 | BD18: 2903 | BE18: 28873.39 | BF18: 994.605236 | BG18: 280.3241748 | BX18: 0.12 | BY18: 0 | BZ18: 0 | CA18: 0
A19: Всего | D19: =SUM(D10:D18) -> 12356347 | E19: =E10+E11+E12+E13+E14+E15+E16+E17+E18 -> 12240362.44 | F19: 99.06133617 | G19: =G10+G11+G12+G13+G14+G15+G16+G17+G18 -> 4512332 | H19: =H10+H11+H12+H13+H14+H15+H16+H17+H18 -> 3579346.59 | I19: =I10+I11+I12+I13+I14+I15+I16+I17+I18 -> 4124141.95 | J19: 115.2205255 | K19: 91.39713013 | L19: =L18+L17+L16+L15+L14+L13+L12+L11+L10 -> 700000 | M19: =M18+M17+M16+M15+M14+M12+M11+M13+M10 -> 497478.26 | N19: =N18+N17+N16+N15+N14+N12+N11+N13+N10 -> 595539.2 | O19: 119.7116031 | P19: 85.07702857 | Q19: =SUM(Q10:Q18) -> 1047600 | R19: =R10+R11+R12+R13+R14+R15+R16+R17+R18 -> 43698.45 | S19: =SUM(S10:S18) -> 702654.76 | T19: 1607.962662 | U19: 67.07281023 | V19: =SUM(V10:V18) -> 3485991 | W19: =SUM(W10:W18) -> 3830513.55 | X19: =SUM(X10:X18) -> 4112942.38 | Y19: 107.3731323 | Z19: 117.9848823 | AA19: 0 | AB19: =AB10+AB11+AB12+AB13+AB14+AB15+AB16+AB17+AB18 -> 161820 | AC19: =AC10+AC11+AC12+AC13+AC14+AC15+AC16+AC17+AC18 -> 109780 | AD19: 67.84081078 | AE19: 0 | AF19: 0 | AG19: =SUM(AG10:AG18) -> 1731.12 | AH19: =AH11+AH13+AH15+AH16+AH17 -> 1.77 | AI19: =AH19/AG19*100 -> 0.1022459448 | AJ19: 0 | AK19: Всего | AN19: =SUM(AN10:AN18) -> 1204750 | AO19: =SUM(AO10:AO18) -> 595996.76 | AP19: =SUM(AP10:AP18) -> 764782.1 | AQ19: 128.3198419 | AR19: 63.48056443 | AS19: =SUM(AS10:AS18) -> 111224 | AT19: =AT10+AT11+AT12+AT13+AT14+AT15+AT16+AT17+AT18 -> 294787.82 | AU19: =AU10+AU11+AU12+AU13+AU14+AU15+AU16+AU17+AU18 -> 377249.62 | AV19: 127.9732724 | AW19: 339.1800511 | AY19: =AY10+AY11+AY12+AY13+AY14+AY15+AY16+AY17+AY18 -> 190351.87 | AZ19: =AZ12+AZ14 -> 48840.57 | BA19: =AZ19/AY19*100 -> 25.65804581 | BB19: 0 | BC19: =SUM(BC10:BC18) -> 599450 | BD19: =BD10+BD11+BD12+BD13+BD14+BD15+BD16+BD17+BD18 -> 574955.96 | BE19: =BE10+BE11+BE12+BE13+BE14+BE15+BE16+BE17+BE18 -> 667344.18 | BF19: 116.0687472 | BG19: 111.3260789 | BH19: =SUM(BH10:BH18) -> 695000 | BI19: =SUM(BI10:BI18) -> 90252 | BJ19: =BJ11+BJ17 -> 698720 | BK19: =BJ19/BI19*100 -> 774.1878296 | BL19: =BL17 -> 0,0, | BN19: =BN17 -> 20000 | BO19: =SUM(BO10:BO18) -> 18500 | BP19: =BO19/BN19*100 -> 92.5 | BQ19: 0 | BT19: =BT17 -> 13900 | BX19: =SUM(BX10:BX18) -> 123851.84 | BY19: =BY10+BY11+BY12+BY13+BY14+BY15+BY16+BY17+BY18 -> 0 | BZ19: =BZ10+BZ11+BZ12+BZ13+BZ14+BZ15+BZ16+BZ17+BZ18 -> 0 | CA19: 0

Sheet Лист3
A2: Исполнение консолидированного бюджета Яльчикского района по налоговым и неналоговым доходам на 01.11.2012г.
G4: Факт за 2011 год | H4: назначено на 2012 год | I4: исполнено | K4: %
I5: на 01.11.2011 | J5: на 01.11.2012 | K5: 01.11.2012/01.11.2011 | L5: 01.11.2012 к плановым назчениям
A6: Налоговые доходы | G6: =G7+G8+G9+G10+G11+G12+G13+G14 -> 50738279.35 | H6: =SUM(H7:H14) -> 56315273 | I6: =I7+I8+I9+I10+I11+I12+I13+I14 -> 39422215.54 | J6: =J7+J8+J9+J10+J11+J12+J13+J14 -> 44694838.67 | K6: =J6/I6*100 -> 113.3747509 | L6: =J6/H6*100 -> 79.36539466
A7: Налог на доходы физ.лиц | G7: 35566547.69 | H7: 40895732 | I7: 26144596.05 | J7: 31044418.46 | K7: 118.7412435 | L7: 75.9111451
A8: Единый налог на вмененный доход | G8: 6545544.78 | H8: 8356500 | I8: 6153817.95 | J8: 6714281.37 | K8: 109.1075723 | L8: 80.34800898
A9: Единый с/х налог | G9: 1186376.9 | H9: 1400000 | I9: 994956.54 | J9: 1191078.21 | K9: 119.7115816 | L9: 85.077015
A10: Налог на имущество физических лиц | G10: 48692.58 | H10: 1047600 | I10: 43698.45 | J10: 702654.76 | K10: 1607.962662 | L10: 67.07281023
A11: Земельный налог | G11: 4808684.08 | H11: 3485991 | I11: 3830513.55 | J11: 4112942.38 | K11: 107.3731323 | L11: 117.9848823
A12: Налог на добычу полезных ископаемых | G12: 257960.6 | H12: 221300 | I12: 176918.11 | J12: 249364 | K12: 140.9488266 | L12: 112.6814279
A13: Госпошлина | G13: 2309064.6 | H13: 908150 | I13: 2071028.41 | J13: 678322.47 | K13: 32.75292926 | L13: 74.69277873
A14: Задолженность и перерасчеты по отменным налогам | G14: 15408.12 | H14: 0 | I14: 6686.48 | J14: 1777.02 | K14: 26.57631519 | L14: 0
A15: Неналоговые доходы | G15: =G16+G17+G18+G19+G20+G22+G23+G24+G25+G27 -> 7325057.72 | H15: =SUM(H16:H27) -> 7154483.59 | I15: =I16+I17+I18+I19+I20+I21+I22+I23+I24+I25+I26 -> 6308977.86 | J15: =J16+J17+J18+J19+J20+J21+J22+J23+J24+J25+J26+J27 -> 5901367.06 | K15: 93.53919432 | L15: =J15/H15*100 -> 82.48487799
A16: Доходы от арендной платы за земельные участки | G16: 1434571.68 | H16: 2409500 | I16: 1191993.01 | J16: 1529563.75 | K16: 128.319859 | L16: =J16/H16*100 -> 63.48054576
A17: Доходы от сдачи в аренду имущества | G17: 261052.75 | H17: 283424 | I17: 183243.71 | J17: 212268.88 | K17: 115.8396542 | L17: =J17/H17*100 -> 74.89446201
A18: Доходы от перечисления части прибыли, остающейся после уплаты налогов и иных обязательных платежей МУП | G18: 113906 | H18: 0 | I18: 0 | J18: 46461 | K18: 0 | L18: 0
A19: Прочие доходы от использования имущества | G19: 169000 | H19: 0 | I19: 169000 | J19: 303500 | K19: =J19/I19*100 -> 179.5857988 | L19: 0
A20: Негативное возд.на окружающую среду | G20: 544160.03 | H20: 365400 | I20: 447586.38 | J20: 519817.19 | K20: =J20/I20*100 -> 116.1378481 | L20: =J20/H20*100 -> 142.2597674
A21: Доходы от оказания платных услуг | G21: 0 | H21: 50000 | I21: 0 | J21: 600 | K21: 0 | L21: 1.2
A22: Прочие доходы от компенсации затрат бюджетов муниципальных районов | G22: 232236.35 | H22: 72259.59 | I22: 229368.46 | J22: 100512.05 | K22: =J22/I22*100 -> 43.82121674 | L22: 139.0985612
A23: Доходы от продажи муниц.имущества | G23: 1254202 | H23: 1615000 | I23: 1005042 | J23: 792960 | K23: =J23/I23*100 -> 78.8981953 | L23: 49.0996904
A24: Доходы от продажи земли | G24: 1213762.66 | H24: 1198900 | I24: 1141137.86 | J24: 1332548.33 | K24: =J24/I24*100 -> 116.7736499 | L24: 111.1475794
A25: Штрафы | G25: 2094966.25 | H25: 1160000 | I25: 1781628.61 | J25: 1049235.86 | K25: =J25/I25*100 -> 58.89195167 | L25: 90.45136724
A26: Невыясненные поступления | I26: 159977.83 | J26: 0 | K26: 0 | L26: 0
A27: Прочие неналоговые доходы | G27: 7200 | H27: 0 | I27: 0 | J27: 13900 | K27: 0 | L27: 0
A28: Итого налог. и неналог. доходы | G28: =G6+G15 -> 58063337.07 | H28: =H6+H15 -> 63469756.59 | I28: =I6+I15 -> 45731193.4 | J28: =J6+J15 -> 50596205.73 | K28: =J28/I28*100 -> 110.6382798 | L28: =J28/H28*100 -> 79.7170313
